fUST/lending_fUST_20240828
["ID","MTS","AMOUNT","RATE_DAILY","PERIOD"]
[336415241,1724818244768,-154.56721181,0.00012754,2]
[336415242,1724818244779,-812.13034557,0.00012782,2]
[336415243,1724818244790,-817.98661284,0.00012782,2]
[336415244,1724818244801,-600.0,0.00012862,2]
[336415245,1724818244812,-600.0,0.00012862,2]
[336415246,1724818244823,-500.0,0.00012876,2]
[336415247,1724818244834,-500.0,0.00012876,2]
[336415248,1724818244845,-523.92416625,0.00012876,2]
[336415249,1724818244857,-500.0,0.00012876,2]
[336415250,1724818244866,-7706.69,0.00012876,2]
[336415251,1724818244875,-500.0,0.00012876,2]
[336415252,1724818244887,-2154.49,0.00012876,2]
[336415253,1724818244896,-3124.85,0.00012876,2]
[336415254,1724818244906,-500.0,0.00012876,2]
[336415255,1724818244915,-738.34,0.00012876,2]
[336415256,1724818244925,-1403.42,0.00012876,2]
[336415257,1724818244935,-500.0,0.00012876,2]
[336415258,1724818244946,-500.0,0.00012876,2]
[336415259,1724818244956,-1681.41,0.00012876,2]
[336415260,1724818244966,-2920.93,0.00012876,2]
[336415261,1724818244976,-1500.89,0.00012876,2]
[336415262,1724818244985,-2080.09,0.00012876,2]
[336415263,1724818244995,-500.0,0.00012876,2]
[336415264,1724818245005,-500.0,0.00012876,2]
[336415265,1724818245014,-500.0,0.00012876,2]
[336415266,1724818245023,-500.0,0.00012876,2]
[336415267,1724818245033,-500.0,0.00012876,2]
[336415268,1724818245044,-1609.4,0.00012876,2]
[336415269,1724818245053,-849.17,0.00012876,2]
[336415270,1724818245063,-704.26,0.00012876,2]
[336415271,1724818245073,-1995.16,0.00012876,2]
[336415272,1724818245082,-3792.06,0.00012876,2]
[336415273,1724818245091,-1802.29,0.00012876,2]
[336415274,1724818245100,-694.835377,0.00012877,2]
[336415275,1724818245110,-288.55434071,0.00012898,2]
[336415276,1724818245120,-288.55434071,0.00012898,2]
[336415277,1724818245129,-151.0,0.000129,2]
[336415278,1724818245138,-481.204689,0.000129,2]
[336415279,1724818245148,-481.204689,0.000129,2]
[336415280,1724818245157,-5278.47122978,0.000129,2]
[336415281,1724818245167,-174.99644935,0.00012934,2]
[336415282,1724818245177,-521.16131332,0.00012934,2]
[336415283,1724818245186,-422.69720013,0.00012934,2]
[336415284,1724818245196,-600.0,0.00012939,2]
[336415285,1724818245206,-493.77204427,0.00012971,2]
[336415286,1724818245216,-422.69720013,0.00012971,2]
[336415287,1724818245226,-404.8069796,0.00012971,2]
[336415288,1724818245240,-695.42593632,0.00012971,2]
[336415289,1724818245250,-934.65211132,0.00012985,2]
[336415290,1724818245260,-544.51359376,0.00012985,2]
[336415291,1724818245270,-1500.0,0.00012985,2]
[336415292,1724818245281,-544.51359376,0.00012985,2]
[336415293,1724818245290,-310.51011385,0.00012991,2]
[336415294,1724818245299,-154.56721181,0.00012991,2]
[336415295,1724818245313,-777.0011055,0.00012999,2]
[336415296,1724818245325,-777.0011055,0.00012999,2]
[336415297,1724818245336,-150.112233,0.00013,2]
[336415298,1724818245345,-337.13775619,0.00013,2]
[336415299,1724818245355,-150.112233,0.00013,2]
[336415300,1724818245365,-150.112233,0.00013,2]
[336415301,1724818245378,-150.112233,0.00013,2]
[336415302,1724818245389,-150.112233,0.00013,2]
[336415303,1724818245400,-150.112233,0.00013,2]
[336415305,1724818245411,-863.27824545,0.00013,2]
[336415307,1724818245422,-8274.24443446,0.00013051,2]
[336415309,1724818245433,-500.0,0.0001315,2]
[336415310,1724818245443,-500.0,0.0001315,2]
[336415311,1724818245454,-500.0,0.0001315,2]
[336415313,1724818245464,-7706.69,0.0001315,2]
[336415315,1724818245475,-500.0,0.0001315,2]
[336415316,1724818245486,-2154.49,0.0001315,2]
[336415317,1724818245495,-3124.85,0.0001315,2]
[336415318,1724818245506,-500.0,0.0001315,2]
[336415320,1724818245518,-738.34,0.0001315,2]
[336415322,1724818245527,-1403.42,0.0001315,2]
[336415323,1724818245537,-403.73990581,0.0001315,2]
[336415324,1724818245546,-500.0,0.0001315,2]
[336415325,1724818245556,-1681.41,0.0001315,2]
[336415326,1724818245565,-2920.93,0.0001315,2]
[336415328,1724818245574,-1500.89,0.0001315,2]
[336415330,1724818245584,-2080.09,0.0001315,2]
[336415332,1724818245594,-500.0,0.0001315,2]
[336415333,1724818245604,-592.18,0.0001315,2]
[336415334,1724818245614,-500.0,0.0001315,2]
[336415336,1724818245624,-500.0,0.0001315,2]
[336415337,1724818245633,-500.0,0.0001315,2]
[336415339,1724818245644,-1609.4,0.0001315,2]
[336415341,1724818245654,-849.17,0.0001315,2]
[336415343,1724818245665,-704.26,0.0001315,2]
[336415344,1724818245674,-1995.16,0.0001315,2]
[336415346,1724818245683,-3792.06,0.0001315,2]
[336415347,1724818245693,-1802.29,0.0001315,2]
[336415348,1724818245702,-600.0,0.00013193,2]
[336415349,1724818245711,-150.112233,0.000132,2]
[336415350,1724818245720,-600.0,0.00013267,2]
[336415351,1724818245729,-600.0,0.00013268,2]
[336415353,1724818245738,-600.0,0.00013275,2]
[336415354,1724818245748,-600.0,0.00013277,2]
[336415356,1724818245757,-600.0,0.00013287,2]
[336415358,1724818245766,-708.47113529,0.00013287,2]
[336415360,1724818245775,-600.0,0.00013287,2]
[336415362,1724818245785,-600.0,0.00013287,2]
[336415364,1724818245794,-600.0,0.00013287,2]
[336415365,1724818245803,-150.112233,0.000134,2]
[336415367,1724818245813,-500.0,0.00013424,2]
[336415369,1724818245823,-500.0,0.00013424,2]
[336415371,1724818245832,-500.0,0.00013424,2]
[336415373,1724818245842,-7706.69,0.00013424,2]
[336415374,1724818245851,-500.0,0.00013424,2]
[336415375,1724818245860,-2154.49,0.00013424,2]
[336415376,1724818245870,-3124.85,0.00013424,2]
[336415377,1724818245879,-500.0,0.00013424,2]
[336415378,1724818245889,-738.34,0.00013424,2]
[336415379,1724818245905,-1403.42,0.00013424,2]
[336415380,1724818245914,-500.0,0.00013424,2]
[336415381,1724818245923,-1681.41,0.00013424,2]
[336415382,1724818245932,-2920.93,0.00013424,2]
[336415383,1724818245944,-1500.89,0.00013424,2]
[336415384,1724818245954,-2080.09,0.00013424,2]
[336415385,1724818245964,-500.0,0.00013424,2]
[336415386,1724818245974,-500.0,0.00013424,2]
[336415387,1724818245984,-500.0,0.00013424,2]
[336415388,1724818245993,-500.0,0.00013424,2]
[336415389,1724818246004,-1609.4,0.00013424,2]
[336415390,1724818246013,-849.17,0.00013424,2]
[336415391,1724818246024,-704.26,0.00013424,2]
[336415392,1724818246035,-1995.16,0.00013424,2]
[336415393,1724818246045,-3792.06,0.00013424,2]
[336415394,1724818246054,-1802.29,0.00013424,2]
[336415395,1724818246064,-600.0,0.00013454,2]
[336415396,1724818246074,-150.112233,0.000135,2]
[336415397,1724818246083,-8274.24443446,0.00013599,2]
[336415398,1724818246093,-500.0,0.00013673,2]
[336415399,1724818246104,-500.20815644,0.00013673,2]
[336415400,1724818246115,-500.0,0.00013698,2]
[336415401,1724818246125,-197.64227645,0.00013698,2]
[336415402,1724818246134,-173.16726271,0.00013698,2]
[336415403,1724818246149,-500.0,0.00013698,2]
[336415404,1724818246159,-500.0,0.00013698,2]
[336415405,1724818246168,-500.0,0.00013698,2]
[336415406,1724818246178,-500.0,0.00013698,2]
[336415407,1724818246188,-500.0,0.00013698,2]
[336415408,1724818246200,-500.0,0.00013698,2]
[336415409,1724818246209,-515.23081175,0.00013698,2]
[336415410,1724818246219,-500.0,0.00013698,2]
[336415411,1724818246233,-500.0,0.00013698,2]
[336415412,1724818246243,-500.0,0.00013698,2]
[336415413,1724818246253,-500.0,0.00013698,2]
[336415414,1724818246262,-500.0,0.00013698,2]
[336415415,1724818246272,-500.0,0.00013698,2]
[336415416,1724818246283,-500.0,0.00013698,2]
[336415417,1724818246293,-500.0,0.00013698,2]
[336415418,1724818246303,-500.0,0.00013698,2]
[336415419,1724818246316,-152.46825051,0.00013698,2]
[336415420,1724818246328,-229.82665384,0.00013698,2]
[336415421,1724818246338,-500.0,0.00013698,2]
[336415422,1724818246349,-435.97715689,0.00013698,2]
[336415423,1724818246359,-942.23693497,0.00013698,2]
[336415424,1724818246370,-942.23693497,0.00013698,2]
[336415425,1724818246381,-942.23693497,0.00013698,2]
[336415426,1724818246392,-942.23693497,0.00013698,2]
[336415427,1724818246411,-942.23693497,0.00013698,2]
[336415428,1724818246421,-942.23693497,0.00013698,2]
[336415429,1724818246431,-942.23693497,0.00013698,2]
[336415430,1724818246442,-942.23693497,0.00013698,2]
[336415431,1724818246452,-942.23693497,0.00013698,2]
[336415432,1724818246463,-942.23693497,0.00013698,2]
[336415433,1724818246474,-1367.67118739,0.00013698,2]
[336415434,1724818246483,-500.0,0.00013698,2]
[336415435,1724818246494,-500.0,0.00013698,2]
[336415436,1724818246503,-500.0,0.00013698,2]
[336415437,1724818246512,-7706.69,0.00013698,2]
[336415438,1724818246521,-500.0,0.00013698,2]
[336415439,1724818246530,-2154.49,0.00013698,2]
[336415440,1724818246540,-3124.85,0.00013698,2]
[336415441,1724818246550,-500.0,0.00013698,2]
[336415442,1724818246559,-738.34,0.00013698,2]
[336415443,1724818246568,-1403.42,0.00013698,2]
[336415444,1724818246578,-500.0,0.00013698,2]
[336415445,1724818246587,-1681.41,0.00013698,2]
[336415446,1724818246596,-2920.93,0.00013698,2]
[336415447,1724818246605,-1500.89,0.00013698,2]
[336415448,1724818246615,-2080.09,0.00013698,2]
[336415449,1724818246626,-500.0,0.00013698,2]
[336415450,1724818246635,-500.0,0.00013698,2]
[336415451,1724818246647,-500.0,0.00013698,2]
[336415452,1724818246658,-500.0,0.00013698,2]
[336415453,1724818246668,-1609.4,0.00013698,2]
[336415454,1724818246679,-849.17,0.00013698,2]
[336415455,1724818246688,-704.26,0.00013698,2]
[336415456,1724818246697,-112.30713312,0.00013698,2]
[336415457,1724818246949,-1882.85286688,0.00013698,2]
[336415458,1724818246962,-3792.06,0.00013698,2]
[336415459,1724818246973,-1802.29,0.00013698,2]
[336415460,1724818246983,-764.587169,0.00013699,2]
[336415461,1724818246994,-3000.0,0.00013699,2]
[336415462,1724818247005,-500.0,0.00013699,2]
[336415463,1724818247015,-500.0,0.00013699,2]
[336415464,1724818247024,-500.0,0.00013699,2]
[336415465,1724818247037,-500.0,0.00013699,2]
[336415466,1724818247048,-500.0,0.00013699,2]
[336415467,1724818247058,-500.0,0.00013699,2]
[336415468,1724818247067,-500.0,0.00013699,2]
[336415469,1724818247077,-500.0,0.00013699,2]
[336415470,1724818247087,-500.0,0.00013699,2]
[336415471,1724818247096,-500.0,0.00013699,2]
[336415472,1724818247105,-500.0,0.00013699,2]
[336415473,1724818247114,-500.0,0.00013699,2]
[336415474,1724818247123,-500.0,0.00013699,2]
[336415475,1724818247132,-500.0,0.00013699,2]
[336415476,1724818247146,-500.0,0.00013699,2]
[336415477,1724818247157,-500.0,0.00013699,2]
[336415478,1724818247169,-500.0,0.00013699,2]
[336415479,1724818247181,-500.0,0.00013699,2]
[336415480,1724818247191,-500.0,0.00013699,2]
[336415481,1724818247200,-500.0,0.00013699,2]
[336415482,1724818247209,-500.0,0.00013699,2]
[336415483,1724818247220,-500.0,0.00013699,2]
[336415484,1724818247235,-500.0,0.00013699,2]
[336415485,1724818247246,-500.0,0.00013699,2]
[336415486,1724818247255,-500.0,0.00013699,2]
[336415487,1724818247265,-500.0,0.00013699,2]
[336415488,1724818247276,-500.0,0.00013699,2]
[336415489,1724818247285,-500.0,0.00013699,2]
[336415490,1724818247295,-22.47998644,0.00013699,2]
[336415491,1724818247308,-477.52001356,0.00013699,2]
[336415492,1724818247317,-500.0,0.00013699,2]
[336415493,1724818247327,-500.0,0.00013699,2]
[336415494,1724818247336,-500.0,0.00013699,2]
[336415495,1724818247345,-500.0,0.00013699,2]
[336415496,1724818247354,-500.0,0.00013699,2]
[336415497,1724818247364,-500.0,0.00013699,2]
[336415498,1724818247375,-500.0,0.00013699,2]
[336415499,1724818247384,-500.0,0.00013699,2]
[336415500,1724818247395,-500.0,0.00013699,2]
[336415501,1724818247406,-500.0,0.00013699,2]
[336415502,1724818247416,-500.0,0.00013699,2]
[336415503,1724818247425,-500.0,0.00013699,2]
[336415504,1724818247436,-245.22733206,0.00013699,2]
[336415505,1724818247460,-11.24212345,0.00013699,2]
[336415506,1724818248481,-191.87395188,0.00013699,2]
[336415507,1724818248673,-500.0,0.00011232,2]
[336415508,1724818248686,-500.0,0.00011506,2]
[336415509,1724818248699,-500.0,0.0001178,2]
[336415510,1724818248713,-155.18088166,0.00011842,2]
[336415511,1724818248726,-528.43634392,0.00011894,2]
[336415512,1724818248739,-500.0,0.00012054,2]
[336415513,1724818248752,-310.3782227,0.00012328,2]
[336415514,1724818248763,-51.65659261,0.00013699,2]
[336415515,1724818248775,-500.0,0.00013699,2]
[336415516,1724818248788,-500.0,0.00013699,2]
[336415517,1724818248801,-500.0,0.00013699,2]
[336415518,1724818248813,-500.0,0.00013699,2]
[336415519,1724818248826,-500.0,0.00013699,2]
[336415520,1724818248838,-500.0,0.00013699,2]
[336415521,1724818248848,-500.0,0.00013699,2]
[336415522,1724818248862,-500.0,0.00013699,2]
[336415523,1724818248874,-500.0,0.00013699,2]
[336415524,1724818248885,-181.80911918,0.00013699,2]
[336415525,1724818248899,-500.0,0.00013699,2]
[336415526,1724818248911,-500.0,0.00013699,2]
[336415527,1724818248924,-500.0,0.00013699,2]
[336415528,1724818248936,-500.0,0.00013699,2]
[336415529,1724818248949,-500.0,0.00013699,2]
[336415530,1724818248964,-500.0,0.00013699,2]
[336415531,1724818248978,-500.0,0.00013699,2]
[336415532,1724818248991,-500.0,0.00013699,2]
[336415533,1724818249003,-500.0,0.00013699,2]
[336415534,1724818249015,-500.0,0.00013699,2]
[336415535,1724818249027,-500.0,0.00013699,2]
[336415536,1724818249037,-500.0,0.00013699,2]
[336415537,1724818249048,-500.0,0.00013699,2]
[336415538,1724818249061,-500.0,0.00013699,2]
[336415539,1724818249073,-500.0,0.00013699,2]
[336415540,1724818249087,-500.0,0.00013699,2]
[336415541,1724818249100,-500.0,0.00013699,2]
[336415542,1724818249111,-150.112233,0.000137,2]
[336415543,1724818249121,-5722.67256098,0.00013801,2]
[336415544,1724818249135,-150.112233,0.000139,2]
[336415545,1724818249147,-150.0,0.0001393,2]
[336415546,1724818249159,-151.0,0.00013972,2]
[336415547,1724818249170,-151.0,0.00013972,2]
[336415548,1724818249182,-151.0,0.00013972,2]
[336415549,1724818249192,-216.58466152,0.00013972,2]
[336415550,1724818249203,-500.0,0.00013972,2]
[336415551,1724818249214,-500.0,0.00013972,2]
[336415552,1724818249225,-7706.69,0.00013972,2]
[336415553,1724818249239,-500.0,0.00013972,2]
[336415554,1724818249253,-2154.49,0.00013972,2]
[336415555,1724818249265,-3124.85,0.00013972,2]
[336415556,1724818249276,-500.0,0.00013972,2]
[336415557,1724818249288,-738.34,0.00013972,2]
[336415558,1724818249299,-1403.42,0.00013972,2]
[336415559,1724818249311,-500.0,0.00013972,2]
[336415560,1724818249322,-1681.41,0.00013972,2]
[336415561,1724818249333,-2920.93,0.00013972,2]
[336415562,1724818249344,-1500.89,0.00013972,2]
[336415563,1724818249355,-2080.09,0.00013972,2]
[336415564,1724818249366,-500.0,0.00013972,2]
[336415565,1724818249376,-500.0,0.00013972,2]
[336415566,1724818249387,-500.0,0.00013972,2]
[336415567,1724818249400,-500.0,0.00013972,2]
[336415568,1724818249418,-1609.4,0.00013972,2]
[336415569,1724818249429,-849.17,0.00013972,2]
[336415570,1724818249440,-704.26,0.00013972,2]
[336415571,1724818249451,-1995.16,0.00013972,2]
[336415572,1724818249462,-3792.06,0.00013972,2]
[336415573,1724818249473,-1802.29,0.00013972,2]
[336415574,1724818249484,-150.0,0.00013988,2]
[336415575,1724818249495,-522.0,0.00013988,2]
[336415576,1724818249507,-236.08268641,0.00014,2]
[336415577,1724818249517,-324.0,0.0001404,2]
[336415578,1724818249528,-150.112233,0.000141,2]
[336415579,1724818249539,-3000.0,0.00014146,2]
[336415580,1724818249551,-163.8898444,0.00014192,2]
[336415581,1724818249562,-153.0,0.00014192,2]
[336415582,1724818249576,-1000.0,0.00014221,2]
[336415583,1724818249587,-612.705406,0.00014236,2]
[336415584,1724818249600,-612.705406,0.00014236,2]
[336415585,1724818249611,-151.0,0.00014246,2]
[336415586,1724818249623,-151.0,0.00014246,2]
[336415587,1724818249635,-151.0,0.00014246,2]
[336415588,1724818249649,-151.0,0.00014246,2]
[336415589,1724818249660,-481.204689,0.00014246,2]
[336415590,1724818249672,-481.204689,0.00014246,2]
[336415591,1724818249682,-500.0,0.00014246,2]
[336415592,1724818249695,-500.0,0.00014246,2]
[336415593,1724818249708,-7706.69,0.00014246,2]
[336415594,1724818249721,-500.0,0.00014246,2]
[336415595,1724818249732,-2154.49,0.00014246,2]
[336415596,1724818249745,-3124.85,0.00014246,2]
[336415597,1724818249758,-500.0,0.00014246,2]
[336415598,1724818249771,-738.34,0.00014246,2]
[336415599,1724818249783,-1403.42,0.00014246,2]
[336415600,1724818249793,-500.0,0.00014246,2]
[336415601,1724818249804,-1681.41,0.00014246,2]
[336415602,1724818249816,-2920.93,0.00014246,2]
[336415603,1724818249828,-1500.89,0.00014246,2]
[336415604,1724818249841,-2080.09,0.00014246,2]
[336415605,1724818249852,-500.0,0.00014246,2]
[336415606,1724818249863,-500.0,0.00014246,2]
[336415607,1724818249875,-500.0,0.00014246,2]
[336415608,1724818249886,-500.0,0.00014246,2]
[336415609,1724818249900,-1609.4,0.00014246,2]
[336415610,1724818249911,-849.17,0.00014246,2]
[336415611,1724818249923,-704.26,0.00014246,2]
[336415612,1724818249933,-1995.16,0.00014246,2]
[336415613,1724818249944,-237.06426772,0.00014246,2]
[336415614,1724818250085,-501.72921038,0.00010958,2]
[336415615,1724818250094,-501.83939237,0.00010958,2]
[336415616,1724818250104,-1284.44,0.00010958,2]
[336415617,1724818250113,-153.81039725,0.00011842,2]
[336415618,1724818250125,-2473.6,0.00011842,2]
[336415619,1724818250613,-500.0,0.00010958,2]
[336415620,1724818250623,-500.0,0.00010958,2]
[336415621,1724818250632,-500.0,0.00010958,2]
[336415622,1724818250641,-500.0,0.00010958,2]
[336415623,1724818250651,-1284.44,0.00011232,2]
[336415624,1724818250661,-500.0,0.00011232,2]
[336415625,1724818250671,-500.0,0.00011232,2]
[336415626,1724818250681,-500.0,0.00011232,2]
[336415627,1724818250689,-503.05372134,0.00011232,2]
[336415628,1724818250699,-1284.44,0.00011506,2]
[336415629,1724818250708,-500.0,0.00011506,2]
[336415630,1724818250717,-500.0,0.00011506,2]
[336415631,1724818250727,-638.85,0.00011506,2]
[336415632,1724818250735,-1284.44,0.0001178,2]
[336415633,1724818250745,-19004.18881631,0.00011842,2]
[336415634,1724818250754,-1284.44,0.00012054,2]
[336415635,1724818250763,-1284.44,0.00012328,2]
[336415636,1724818250773,-1630.32116298,0.00012551,2]
[336415637,1724818250785,-1284.44,0.00012602,2]
[336415638,1724818250795,-812.13034557,0.00012779,2]
[336415639,1724818250804,-1284.44,0.00012876,2]
[336415640,1724818250813,-404.8069796,0.00012934,2]
[336415641,1724818250824,-154.97957624,0.00012971,2]
[336415642,1724818250835,-1284.44,0.0001315,2]
[336415643,1724818250846,-1284.44,0.00013424,2]
[336415644,1724818250855,-3554.99573228,0.00014246,2]
[336415645,1724818250864,-1802.29,0.00014246,2]
[336415646,1724818250874,-750.0,0.00014247,2]
[336415647,1724818250884,-150.112233,0.000143,2]
[336415648,1724818250895,-214.828558,0.00014365,2]
[336415649,1724818250906,-202.654079,0.00014365,2]
[336415650,1724818250918,-1057.530059,0.00014365,2]
[336415651,1724818250928,-644.485674,0.00014365,2]
[336415652,1724818250937,-202.654079,0.00014365,2]
[336415653,1724818250947,-264.382515,0.00014365,2]
[336415654,1724818250957,-214.828559,0.00014365,2]
[336415655,1724818250967,-153.0,0.00014392,2]
[336415656,1724818250976,-153.0,0.00014392,2]
[336415657,1724818250987,-153.0,0.00014392,2]
[336415658,1724818250999,-150.112233,0.000144,2]
[336415659,1724818251009,-151.0,0.0001452,2]
[336415660,1724818251020,-151.0,0.0001452,2]
[336415661,1724818251031,-153.685055,0.0001452,2]
[336415662,1724818251041,-153.685055,0.0001452,2]
[336415663,1724818251051,-500.0,0.0001452,2]
[336415664,1724818251061,-500.0,0.0001452,2]
[336415665,1724818251072,-151.0,0.0001452,2]
[336415666,1724818251082,-477.953978,0.0001452,2]
[336415667,1724818251095,-477.953978,0.0001452,2]
[336415668,1724818251104,-151.0,0.0001452,2]
[336415669,1724818251114,-151.0,0.0001452,2]
[336415670,1724818251123,-500.0,0.0001452,2]
[336415671,1724818251132,-2154.49,0.0001452,2]
[336415672,1724818251142,-500.0,0.0001452,2]
[336415673,1724818251154,-738.34,0.0001452,2]
[336415674,1724818251163,-181.320174,0.0001452,2]
[336415675,1724818251173,-181.320174,0.0001452,2]
[336415676,1724818251183,-1403.42,0.0001452,2]
[336415677,1724818251194,-617.127279,0.0001452,2]
[336415678,1724818251204,-617.127279,0.0001452,2]
[336415679,1724818251214,-500.0,0.0001452,2]
[336415680,1724818251223,-1681.41,0.0001452,2]
[336415681,1724818251235,-2920.93,0.0001452,2]
[336415682,1724818251246,-1500.89,0.0001452,2]
[336415683,1724818251257,-2080.09,0.0001452,2]
[336415684,1724818251267,-330.603884,0.0001452,2]
[336415685,1724818251278,-5226.782968,0.0001452,2]
[336415686,1724818251288,-500.0,0.0001452,2]
[336415687,1724818251298,-330.603884,0.0001452,2]
[336415688,1724818251308,-5226.782968,0.0001452,2]
[336415689,1724818251318,-585.777275,0.0001452,2]
[336415690,1724818251328,-585.777275,0.0001452,2]
[336415691,1724818251338,-804.331812,0.0001452,2]
[336415692,1724818251347,-804.331812,0.0001452,2]
[336415693,1724818251359,-500.0,0.0001452,2]
[336415694,1724818251369,-500.0,0.0001452,2]
[336415695,1724818251378,-645.999336,0.0001452,2]
[336415696,1724818251389,-500.0,0.0001452,2]
[336415697,1724818251401,-1609.4,0.0001452,2]
[336415698,1724818251410,-151.0,0.0001452,2]
[336415699,1724818251420,-645.999336,0.0001452,2]
[336415700,1724818251429,-849.17,0.0001452,2]
[336415701,1724818251439,-704.26,0.0001452,2]
[336415702,1724818251448,-1995.16,0.0001452,2]
[336415703,1724818251457,-3792.06,0.0001452,2]
[336415704,1724818251467,-1802.29,0.0001452,2]
[336415705,1724818251476,-451.820278,0.0001452,2]
[336415706,1724818251485,-451.820278,0.0001452,2]
[336415707,1724818251495,-214.828558,0.00014544,2]
[336415708,1724818251504,-1057.530059,0.00014544,2]
[336415709,1724818251513,-644.485674,0.00014544,2]
[336415710,1724818251522,-264.382515,0.00014544,2]
[336415711,1724818251531,-214.828559,0.00014544,2]
[336415712,1724818251540,-150.112233,0.000146,2]
[336415713,1724818251550,-264.99376723,0.00014611,2]
[336415714,1724818251559,-264.99376723,0.00014611,2]
[336415715,1724818251568,-153.0,0.00014685,2]
[336415716,1724818251580,-150.0,0.0001471,2]
[336415717,1724818251591,-300.0,0.0001471,2]
[336415718,1724818251602,-3200.0,0.0001471,2]
[336415719,1724818251612,-214.828558,0.00014724,2]
[336415720,1724818251621,-1057.530059,0.00014724,2]
[336415721,1724818251630,-644.485674,0.00014724,2]
[336415722,1724818251639,-264.382515,0.00014724,2]
[336415723,1724818251648,-214.828559,0.00014724,2]
[336415724,1724818251658,-500.0,0.00014794,2]
[336415725,1724818251668,-500.0,0.00014794,2]
[336415726,1724818251679,-500.0,0.00014794,2]
[336415727,1724818251693,-2154.49,0.00014794,2]
[336415728,1724818251704,-500.0,0.00014794,2]
[336415729,1724818251714,-738.34,0.00014794,2]
[336415730,1724818251724,-1403.42,0.00014794,2]
[336415731,1724818251733,-500.0,0.00014794,2]
[336415732,1724818251745,-1681.41,0.00014794,2]
[336415733,1724818251754,-2920.93,0.00014794,2]
[336415734,1724818251766,-1500.89,0.00014794,2]
[336415735,1724818251777,-2080.09,0.00014794,2]
[336415736,1724818251786,-500.0,0.00014794,2]
[336415737,1724818251796,-500.0,0.00014794,2]
[336415738,1724818251807,-500.0,0.00014794,2]
[336415739,1724818251819,-500.0,0.00014794,2]
[336415740,1724818251829,-1609.4,0.00014794,2]
[336415741,1724818251838,-849.17,0.00014794,2]
[336415742,1724818251848,-704.26,0.00014794,2]
[336415743,1724818251859,-1995.16,0.00014794,2]
[336415744,1724818251871,-3792.06,0.00014794,2]
[336415745,1724818251882,-1802.29,0.00014794,2]
[336415746,1724818251892,-303.0,0.000148,2]
[336415747,1724818251905,-214.828558,0.00014903,2]
[336415748,1724818251915,-1057.530059,0.00014903,2]
[336415749,1724818251925,-644.485674,0.00014903,2]
[336415750,1724818251936,-264.382515,0.00014903,2]
[336415751,1724818251949,-214.828559,0.00014903,2]
[336415752,1724818251960,-500.0,0.00015068,2]
[336415753,1724818251970,-500.0,0.00015068,2]
[336415754,1724818251981,-500.0,0.00015068,2]
[336415755,1724818251992,-2154.49,0.00015068,2]
[336415756,1724818252004,-598.73643129,0.00015068,2]
[336415757,1724818252014,-738.34,0.00015068,2]
[336415758,1724818252024,-1403.42,0.00015068,2]
[336415759,1724818252035,-500.0,0.00015068,2]
[336415760,1724818252045,-1681.41,0.00015068,2]
[336415761,1724818252056,-2920.93,0.00015068,2]
[336415762,1724818252065,-1500.89,0.00015068,2]
[336415763,1724818252074,-2080.09,0.00015068,2]
[336415764,1724818252084,-500.0,0.00015068,2]
[336415765,1724818252093,-188.488455,0.00015068,2]